[Event "*** SCC Grand Prix: Titled Tuesday Blitz"]
[Site "Chess.com"]
[Date "2020.06.23"]
[Round "8"]
[White "Gareth-Bale11"]
[Black "TheNextLevelFan"]
[Result "0-1"]
[WhiteElo "2710"]
[BlackElo "2517"]
[TimeControl "180+1"]
[EndTime "11:36:47 PDT"]
[Termination "TheNextLevelFan won on time"]

1. e4 {[%clk 0:03:00.9]} 1... e5 {[%clk 0:02:59.5]} 2. Nf3 {[%clk 0:02:59.9]}
2... Nc6 {[%clk 0:02:59.9]} 3. Bc4 {[%clk 0:02:59.1]} 3... Bc5 {[%clk
0:02:59.9]} 4. c3 {[%clk 0:02:59.1]} 4... Nf6 {[%clk 0:02:59.2]} 5. d4 {[%clk
0:02:57.9]} 5... exd4 {[%clk 0:02:58.9]} 6. e5 {[%clk 0:02:58.6]} 6... d5 {[%clk
0:02:57.4]} 7. Be2 {[%clk 0:02:59.1]} 7... Ne4 {[%clk 0:02:49]} 8. cxd4 {[%clk
0:02:57.8]} 8... Bb4+ {[%clk 0:02:48.4]} 9. Nbd2 {[%clk 0:02:51.7]} 9... O-O
{[%clk 0:02:45.9]} 10. O-O {[%clk 0:02:50.9]} 10... Bf5 {[%clk 0:02:43.8]} 11.
Nb3 {[%clk 0:02:45.7]} 11... Be7 {[%clk 0:02:30.2]} 12. Bf4 {[%clk 0:02:41.6]}
12... Nb8 {[%clk 0:02:13.5]} 13. Rc1 {[%clk 0:02:29.1]} 13... Nd7 {[%clk
0:02:10.3]} 14. Nc5 {[%clk 0:02:28.7]} 14... Ndxc5 {[%clk 0:02:06.4]} 15. dxc5
{[%clk 0:02:26.8]} 15... Bxc5 {[%clk 0:02:03]} 16. Nd4 {[%clk 0:02:22]} 16...
Bg6 {[%clk 0:02:02]} 17. Be3 {[%clk 0:02:20.7]} 17... Bxd4 {[%clk 0:01:45.5]}
18. Bxd4 {[%clk 0:02:11.9]} 18... f5 {[%clk 0:01:25.1]} 19. exf6 {[%clk
0:02:08.7]} 19... Nxf6 {[%clk 0:01:24.3]} 20. Re1 {[%clk 0:02:01.8]} 20... c6
{[%clk 0:01:22.1]} 21. Qb3 {[%clk 0:01:58.7]} 21... Qd7 {[%clk 0:01:21.6]} 22.
f3 {[%clk 0:01:52.3]} 22... a6 {[%clk 0:01:13.4]} 23. Qc3 {[%clk 0:01:48.3]}
23... Rae8 {[%clk 0:01:10.8]} 24. b4 {[%clk 0:01:44.4]} 24... Nh5 {[%clk
0:01:07.1]} 25. Bf1 {[%clk 0:01:43.9]} 25... Nf4 {[%clk 0:01:05.3]} 26. Bc5
{[%clk 0:01:39.6]} 26... Rf6 {[%clk 0:01:01]} 27. Rxe8+ {[%clk 0:01:36]} 27...
Qxe8 {[%clk 0:01:01.9]} 28. Bd4 {[%clk 0:01:36.3]} 28... Rf7 {[%clk 0:00:57]}
29. a4 {[%clk 0:01:35.9]} 29... Re7 {[%clk 0:00:32.6]} 30. b5 {[%clk 0:01:25.6]}
30... axb5 {[%clk 0:00:32.8]} 31. axb5 {[%clk 0:01:26.5]} 31... Ne2+ {[%clk
0:00:26.7]} 32. Bxe2 {[%clk 0:01:24.5]} 32... Rxe2 {[%clk 0:00:27.6]} 33. bxc6
{[%clk 0:01:25.1]} 33... bxc6 {[%clk 0:00:27.1]} 34. Qxc6 {[%clk 0:01:15.7]}
34... Re1+ {[%clk 0:00:24.9]} 35. Kf2 {[%clk 0:01:15.6]} 35... Qe2+ {[%clk
0:00:23.3]} 36. Kg3 {[%clk 0:01:15.1]} 36... Rxc1 {[%clk 0:00:21.3]} 37. Qxc1
{[%clk 0:01:07.6]} 37... h6 {[%clk 0:00:14]} 38. Qc7 {[%clk 0:00:49.3]} 38...
Bf7 {[%clk 0:00:13.3]} 39. Qc8+ {[%clk 0:00:44.2]} 39... Kh7 {[%clk 0:00:12.2]}
40. Qf5+ {[%clk 0:00:39.9]} 40... Kg8 {[%clk 0:00:12.2]} 41. Qc8+ {[%clk
0:00:26.9]} 41... Qe8 {[%clk 0:00:12]} 42. Qg4 {[%clk 0:00:21.6]} 42... Qe1+
{[%clk 0:00:10]} 43. Bf2 {[%clk 0:00:18.1]} 43... Qe5+ {[%clk 0:00:09.9]} 44.
Qf4 {[%clk 0:00:17.3]} 44... Qxf4+ {[%clk 0:00:09.7]} 45. Kxf4 {[%clk
0:00:17.2]} 45... Kf8 {[%clk 0:00:08.8]} 46. Bc5+ {[%clk 0:00:17]} 46... Ke8
{[%clk 0:00:08.8]} 47. Bd4 {[%clk 0:00:17.9]} 47... g6 {[%clk 0:00:08.9]} 48. g4
{[%clk 0:00:17.2]} 48... h5 {[%clk 0:00:08.9]} 49. gxh5 {[%clk 0:00:17]} 49...
gxh5 {[%clk 0:00:09.8]} 50. Kf5 {[%clk 0:00:17]} 50... Kd7 {[%clk 0:00:09.4]}
51. Kf6 {[%clk 0:00:16.4]} 51... Be8 {[%clk 0:00:09.6]} 52. f4 {[%clk
0:00:16.8]} 52... Kd6 {[%clk 0:00:09.6]} 53. f5 {[%clk 0:00:17]} 53... Ba4
{[%clk 0:00:07.7]} 54. Be5+ {[%clk 0:00:16]} 54... Kd7 {[%clk 0:00:07.2]} 55.
Bd4 {[%clk 0:00:13.4]} 55... Bc2 {[%clk 0:00:07]} 56. Ke5 {[%clk 0:00:10]} 56...
Ke7 {[%clk 0:00:05.5]} 57. f6+ {[%clk 0:00:09.5]} 57... Kf7 {[%clk 0:00:05.8]}
58. Kxd5 {[%clk 0:00:08]} 58... Bd1 {[%clk 0:00:06.1]} 59. Ke5 {[%clk
0:00:03.6]} 59... Be2 {[%clk 0:00:06.4]} 0-1

[Event "*** SCC Grand Prix: Titled Tuesday Blitz"]
[Site "Chess.com"]
[Date "2020.06.23"]
[Round "8"]
[White "vugarrasulov"]
[Black "kirillshevchenko"]
[Result "0-1"]
[WhiteElo "2803"]
[BlackElo "2933"]
[TimeControl "180+1"]
[EndTime "11:36:53 PDT"]
[Termination "kirillshevchenko won on time"]

1. e4 {[%clk 0:03:00.9]} 1... e5 {[%clk 0:02:58]} 2. Nf3 {[%clk 0:03:00.7]} 2...
Nc6 {[%clk 0:02:58.6]} 3. Bb5 {[%clk 0:03:01.1]} 3... a6 {[%clk 0:02:58.1]} 4.
Ba4 {[%clk 0:03:00.7]} 4... b5 {[%clk 0:02:58.7]} 5. Bb3 {[%clk 0:03:00.3]} 5...
g6 {[%clk 0:02:59.3]} 6. c3 {[%clk 0:02:59.2]} 6... Bg7 {[%clk 0:02:56.8]} 7. d4
{[%clk 0:02:59.6]} 7... exd4 {[%clk 0:02:56.7]} 8. cxd4 {[%clk 0:03:00.5]} 8...
d6 {[%clk 0:02:56.9]} 9. O-O {[%clk 0:02:57.3]} 9... Nge7 {[%clk 0:02:56.8]} 10.
Nc3 {[%clk 0:02:55.9]} 10... O-O {[%clk 0:02:56.4]} 11. h3 {[%clk 0:02:56.2]}
11... Na5 {[%clk 0:02:54.2]} 12. Bc2 {[%clk 0:02:55.6]} 12... c5 {[%clk
0:02:54.7]} 13. dxc5 {[%clk 0:02:39.9]} 13... dxc5 {[%clk 0:02:54.3]} 14. e5
{[%clk 0:02:32.5]} 14... Bf5 {[%clk 0:02:43.2]} 15. Bxf5 {[%clk 0:02:28.6]}
15... Nxf5 {[%clk 0:02:42.6]} 16. Qxd8 {[%clk 0:02:24.1]} 16... Rfxd8 {[%clk
0:02:33.9]} 17. Bg5 {[%clk 0:02:23.8]} 17... Rd3 {[%clk 0:02:14.7]} 18. Ne4
{[%clk 0:02:13]} 18... c4 {[%clk 0:01:50.2]} 19. Rfe1 {[%clk 0:02:00.4]} 19...
Rxf3 {[%clk 0:01:42.1]} 20. gxf3 {[%clk 0:01:59.3]} 20... Nd4 {[%clk 0:01:42.6]}
21. Kg2 {[%clk 0:01:34.5]} 21... Nc2 {[%clk 0:01:40.6]} 22. Nf6+ {[%clk
0:01:32.7]} 22... Bxf6 {[%clk 0:01:35.3]} 23. exf6 {[%clk 0:01:30.5]} 23... b4
{[%clk 0:01:14.1]} 24. Re5 {[%clk 0:01:27.3]} 24... Nxa1 {[%clk 0:01:00.9]} 25.
Rxa5 {[%clk 0:01:27]} 25... Nc2 {[%clk 0:00:49.3]} 26. Rc5 {[%clk 0:01:23.6]}
26... b3 {[%clk 0:00:45.9]} 27. a4 {[%clk 0:01:09]} 27... Ne1+ {[%clk
0:00:38.2]} 28. Kg3 {[%clk 0:01:09.4]} 28... Nd3 {[%clk 0:00:35.8]} 29. Rxc4
{[%clk 0:01:09.8]} 29... Nxb2 {[%clk 0:00:32.9]} 30. Rb4 {[%clk 0:01:08.1]}
30... a5 {[%clk 0:00:33.2]} 31. Rxb3 {[%clk 0:01:06.9]} 31... Nxa4 {[%clk
0:00:33.8]} 32. Be3 {[%clk 0:01:05.3]} 32... Rc8 {[%clk 0:00:32.3]} 33. Bd4
{[%clk 0:00:53.7]} 33... h5 {[%clk 0:00:29.2]} 34. Kf4 {[%clk 0:00:54]} 34...
Nc5 {[%clk 0:00:26.1]} 35. Bxc5 {[%clk 0:00:26.9]} 35... Rxc5 {[%clk 0:00:27]}
36. Rb8+ {[%clk 0:00:27.1]} 36... Kh7 {[%clk 0:00:26.8]} 37. Ra8 {[%clk
0:00:28]} 37... g5+ {[%clk 0:00:23.6]} 38. Ke4 {[%clk 0:00:27.5]} 38... Kg6
{[%clk 0:00:24.2]} 39. Ra6 {[%clk 0:00:27.8]} 39... Rf5 {[%clk 0:00:22.7]} 40.
Ke3 {[%clk 0:00:28]} 40... Rb5 {[%clk 0:00:22.8]} 41. Ke4 {[%clk 0:00:27.6]}
41... Rb4+ {[%clk 0:00:23]} 42. Ke3 {[%clk 0:00:27.6]} 42... a4 {[%clk
0:00:21.7]} 43. Ke2 {[%clk 0:00:24.3]} 43... Rb3 {[%clk 0:00:21.5]} 44. Rxa4
{[%clk 0:00:23.7]} 44... Kxf6 {[%clk 0:00:21.3]} 45. Ra5 {[%clk 0:00:23.9]}
45... Rb1 {[%clk 0:00:20.7]} 46. Ra6+ {[%clk 0:00:22.6]} 46... Kf5 {[%clk
0:00:20.3]} 47. Ra5+ {[%clk 0:00:23]} 47... Kg6 {[%clk 0:00:20.4]} 48. Ra6+
{[%clk 0:00:22.8]} 48... f6 {[%clk 0:00:20.6]} 49. f4 {[%clk 0:00:21.3]} 49...
gxf4 {[%clk 0:00:16.8]} 50. Kf3 {[%clk 0:00:21.9]} 50... Rb3+ {[%clk 0:00:16.6]}
51. Kxf4 {[%clk 0:00:20]} 51... Rxh3 {[%clk 0:00:16.5]} 52. Ra8 {[%clk
0:00:20.6]} 52... Rh1 {[%clk 0:00:12.9]} 53. Rg8+ {[%clk 0:00:20.4]} 53... Kf7
{[%clk 0:00:13.3]} 54. Ra8 {[%clk 0:00:20.5]} 54... Rg1 {[%clk 0:00:11.2]} 55.
Rh8 {[%clk 0:00:20.3]} 55... Rg5 {[%clk 0:00:11.2]} 56. Ke3 {[%clk 0:00:19.8]}
56... Rf5 {[%clk 0:00:10.2]} 57. f4 {[%clk 0:00:19]} 57... Rb5 {[%clk
0:00:09.9]} 58. Kf3 {[%clk 0:00:18.4]} 58... Kg6 {[%clk 0:00:09.7]} 59. Kg3
{[%clk 0:00:16.2]} 59... Rb1 {[%clk 0:00:09]} 60. Rg8+ {[%clk 0:00:12.2]} 60...
Kf5 {[%clk 0:00:08.8]} 61. Rh8 {[%clk 0:00:12.8]} 61... Rb3+ {[%clk 0:00:08.9]}
62. Kh4 {[%clk 0:00:10.8]} 62... Kxf4 {[%clk 0:00:08.5]} 63. Ra8 {[%clk
0:00:09.4]} 63... f5 {[%clk 0:00:06.3]} 64. Ra4+ {[%clk 0:00:07.7]} 64... Kf3
{[%clk 0:00:03.2]} 65. Kg5 {[%clk 0:00:08.1]} 65... Rb5 {[%clk 0:00:03.5]} 66.
Rf4+ {[%clk 0:00:06.8]} 66... Kg3 {[%clk 0:00:03.6]} 0-1

[Event "*** SCC Grand Prix: Titled Tuesday Blitz"]
[Site "Chess.com"]
[Date "2020.06.23"]
[Round "8"]
[White "Eltaj_Safarli"]
[Black "Infernal_XaM"]
[Result "1/2-1/2"]
[WhiteElo "2951"]
[BlackElo "2821"]
[TimeControl "180+1"]
[EndTime "11:36:55 PDT"]
[Termination "Game drawn by agreement"]

1. e4 {[%clk 0:03:00.9]} 1... e6 {[%clk 0:02:56.2]} 2. d4 {[%clk 0:03:00]} 2...
d5 {[%clk 0:02:56.6]} 3. Nd2 {[%clk 0:03:00.9]} 3... b6 {[%clk 0:02:51.9]} 4.
Ngf3 {[%clk 0:02:58]} 4... Nf6 {[%clk 0:02:48.8]} 5. exd5 {[%clk 0:02:53]} 5...
exd5 {[%clk 0:02:47.7]} 6. Bd3 {[%clk 0:02:53.5]} 6... Bd6 {[%clk 0:02:46.2]} 7.
O-O {[%clk 0:02:53.3]} 7... O-O {[%clk 0:02:46.8]} 8. Re1 {[%clk 0:02:53.6]}
8... Bb7 {[%clk 0:02:45.7]} 9. Ne5 {[%clk 0:02:51]} 9... Nbd7 {[%clk 0:02:46.1]}
10. Ndf3 {[%clk 0:02:51]} 10... Ne4 {[%clk 0:02:46.5]} 11. c4 {[%clk 0:02:46.4]}
11... f5 {[%clk 0:02:35.5]} 12. Qb3 {[%clk 0:02:36.9]} 12... Bxe5 {[%clk
0:02:05.6]} 13. Nxe5 {[%clk 0:02:31.7]} 13... Nxe5 {[%clk 0:02:05.2]} 14. dxe5
{[%clk 0:02:32.6]} 14... Nc5 {[%clk 0:02:05.6]} 15. Qc2 {[%clk 0:02:31.3]} 15...
Nxd3 {[%clk 0:02:05.1]} 16. Qxd3 {[%clk 0:02:32.2]} 16... d4 {[%clk 0:02:05.4]}
17. f3 {[%clk 0:02:26.9]} 17... c5 {[%clk 0:02:03.6]} 18. b4 {[%clk 0:02:19.9]}
18... cxb4 {[%clk 0:02:01.5]} 19. Bb2 {[%clk 0:02:19.6]} 19... Qe7 {[%clk
0:02:00]} 20. Bxd4 {[%clk 0:02:08]} 20... Rfd8 {[%clk 0:01:57.3]} 21. Rad1
{[%clk 0:02:04.5]} 21... Qe6 {[%clk 0:01:57]} 22. Qe3 {[%clk 0:01:56.5]} 22...
Rd7 {[%clk 0:01:52.5]} 23. Rd2 {[%clk 0:01:49.7]} 23... Rad8 {[%clk 0:01:51.5]}
24. Red1 {[%clk 0:01:50.3]} 24... Ba6 {[%clk 0:01:46.9]} 25. c5 {[%clk
0:01:46.3]} 25... Bc4 {[%clk 0:00:56.4]} 26. cxb6 {[%clk 0:01:44.3]} 26... axb6
{[%clk 0:00:56.4]} 27. Qf2 {[%clk 0:01:32]} 27... h6 {[%clk 0:00:54.6]} 28. h4
{[%clk 0:01:30.2]} 28... b5 {[%clk 0:00:52.9]} 29. h5 {[%clk 0:01:18.3]} 29...
f4 {[%clk 0:00:40.4]} 30. Rb1 {[%clk 0:01:15.2]} 30... Bxa2 {[%clk 0:00:36.9]}
31. Rxb4 {[%clk 0:01:15.4]} 31... Bc4 {[%clk 0:00:37.4]} 32. Rb1 {[%clk
0:01:15.6]} 32... Qf5 {[%clk 0:00:36.8]} 33. Re1 {[%clk 0:01:11.1]} 33... Qxh5
{[%clk 0:00:37.4]} 34. e6 {[%clk 0:01:11.3]} 34... Re7 {[%clk 0:00:37.5]} 35.
Bb2 {[%clk 0:00:29.9]} 35... Rxd2 {[%clk 0:00:36.3]} 36. Qxd2 {[%clk 0:00:30.8]}
36... Rxe6 {[%clk 0:00:35.8]} 37. Rxe6 {[%clk 0:00:28.5]} 37... Bxe6 {[%clk
0:00:35.6]} 38. Qxf4 {[%clk 0:00:25.2]} 38... Bc4 {[%clk 0:00:31.6]} 39. Qd4
{[%clk 0:00:19.9]} 39... Qf7 {[%clk 0:00:30.9]} 40. Kf2 {[%clk 0:00:20]} 40...
Qg6 {[%clk 0:00:30.7]} 41. Bc3 {[%clk 0:00:18.8]} 41... Kh7 {[%clk 0:00:30.8]}
42. Qe5 {[%clk 0:00:17.5]} 42... Bd3 {[%clk 0:00:25.1]} 43. Qd4 {[%clk
0:00:17.2]} 43... Bc4 {[%clk 0:00:24]} 44. Qe5 {[%clk 0:00:17.4]} 44... Bf7
{[%clk 0:00:15.2]} 45. Qd4 {[%clk 0:00:15.2]} 45... h5 {[%clk 0:00:13.3]} 46.
Qe5 {[%clk 0:00:14.2]} 46... h4 {[%clk 0:00:13]} 47. Bd2 {[%clk 0:00:04.2]}
47... Be6 {[%clk 0:00:12]} 48. Qf4 {[%clk 0:00:03.7]} 48... Qh5 {[%clk
0:00:10.2]} 49. Qe4+ {[%clk 0:00:03.4]} 49... Bf5 {[%clk 0:00:10.7]} 50. Qe5
{[%clk 0:00:03.7]} 50... Qg6 {[%clk 0:00:09.9]} 51. Qf4 {[%clk 0:00:04.1]} 51...
Qh5 {[%clk 0:00:09.7]} 52. Qe5 {[%clk 0:00:03.9]} 52... h3 {[%clk 0:00:10.1]}
53. gxh3 {[%clk 0:00:02.5]} 53... Qh4+ {[%clk 0:00:10.5]} 54. Ke2 {[%clk
0:00:01.7]} 54... Qxh3 {[%clk 0:00:10.8]} 55. Bc3 {[%clk 0:00:02.2]} 55... Qg2+
{[%clk 0:00:10.9]} 56. Ke3 {[%clk 0:00:02.3]} 56... Bc2 {[%clk 0:00:10.4]} 57.
Qh5+ {[%clk 0:00:01.9]} 57... Kg8 {[%clk 0:00:10.9]} 58. Qe8+ {[%clk 0:00:02.8]}
58... Kh7 {[%clk 0:00:11.4]} 59. Qh5+ {[%clk 0:00:03.6]} 59... Kg8 {[%clk
0:00:11.9]} 60. Qxb5 {[%clk 0:00:02.9]} 60... Qg1+ {[%clk 0:00:11.1]} 61. Kf4
{[%clk 0:00:03.2]} 61... Qh2+ {[%clk 0:00:09.1]} 62. Ke3 {[%clk 0:00:03.7]}
62... Qg1+ {[%clk 0:00:08.7]} 63. Kd2 {[%clk 0:00:03.9]} 63... Qg6 {[%clk
0:00:08.5]} 64. Qb8+ {[%clk 0:00:03]} 64... Kh7 {[%clk 0:00:09]} 65. Qh2+ {[%clk
0:00:03.4]} 65... Kg8 {[%clk 0:00:09.5]} 66. Qe5 {[%clk 0:00:04.3]} 66... Bf5
{[%clk 0:00:09.1]} 67. Ke3 {[%clk 0:00:04.1]} 67... Qe6 {[%clk 0:00:08.8]} 68.
Kf4 {[%clk 0:00:04.3]} 68... Qxe5+ {[%clk 0:00:09]} 69. Bxe5 {[%clk 0:00:05.2]}
69... g6 {[%clk 0:00:09.8]} 70. Kg5 {[%clk 0:00:05.2]} 70... Kf7 {[%clk
0:00:10.7]} 71. f4 {[%clk 0:00:06.1]} 71... Ke6 {[%clk 0:00:11]} 1/2-1/2

[Event "*** SCC Grand Prix: Titled Tuesday Blitz"]
[Site "Chess.com"]
[Date "2020.06.23"]
[Round "8"]
[White "alexsergeyev"]
[Black "esrosenberg"]
[Result "0-1"]
[WhiteElo "2367"]
[BlackElo "2162"]
[TimeControl "180+1"]
[EndTime "11:36:56 PDT"]
[Termination "esrosenberg won on time"]

1. d4 {[%clk 0:03:00.9]} 1... Nf6 {[%clk 0:02:59.6]} 2. c4 {[%clk 0:02:59.8]}
2... e6 {[%clk 0:02:59.9]} 3. Nf3 {[%clk 0:02:58.9]} 3... d5 {[%clk 0:03:00.2]}
4. Nc3 {[%clk 0:02:58]} 4... Bb4 {[%clk 0:03:00.3]} 5. cxd5 {[%clk 0:02:57.4]}
5... exd5 {[%clk 0:02:59.4]} 6. Qc2 {[%clk 0:02:54.4]} 6... O-O {[%clk
0:02:59.1]} 7. Bg5 {[%clk 0:02:53.2]} 7... h6 {[%clk 0:02:58.7]} 8. Bh4 {[%clk
0:02:52.5]} 8... c5 {[%clk 0:02:54.2]} 9. e3 {[%clk 0:02:51.6]} 9... Nc6 {[%clk
0:02:49.7]} 10. dxc5 {[%clk 0:02:41.8]} 10... d4 {[%clk 0:02:35.7]} 11. exd4
{[%clk 0:02:40.7]} 11... Nxd4 {[%clk 0:02:35.8]} 12. Nxd4 {[%clk 0:02:29.1]}
12... Qxd4 {[%clk 0:02:35.5]} 13. Bxf6 {[%clk 0:02:28.1]} 13... Qxf6 {[%clk
0:02:25.9]} 14. Be2 {[%clk 0:02:26.7]} 14... Bf5 {[%clk 0:02:17]} 15. Qb3 {[%clk
0:02:22]} 15... Bxc3+ {[%clk 0:01:59.4]} 16. Qxc3 {[%clk 0:02:20.3]} 16... Qxc3+
{[%clk 0:01:29.8]} 17. bxc3 {[%clk 0:02:19.3]} 17... Rfe8 {[%clk 0:01:30.5]} 18.
Rd1 {[%clk 0:02:15.6]} 18... Rac8 {[%clk 0:01:19.7]} 19. Rd5 {[%clk 0:02:03.2]}
19... Be6 {[%clk 0:01:19.2]} 20. Re5 {[%clk 0:02:01.5]} 20... Bc4 {[%clk
0:01:01.1]} 21. Re3 {[%clk 0:01:47.6]} 21... Rxe3 {[%clk 0:00:54.3]} 22. fxe3
{[%clk 0:01:46.2]} 22... Rxc5 {[%clk 0:00:54.7]} 23. Bxc4 {[%clk 0:01:34.6]}
23... Rxc4 {[%clk 0:00:54.9]} 24. Kd2 {[%clk 0:01:34.8]} 24... Ra4 {[%clk
0:00:52.6]} 25. Ra1 {[%clk 0:01:33.4]} 25... f5 {[%clk 0:00:50.7]} 26. Kc2
{[%clk 0:01:33.2]} 26... Kf7 {[%clk 0:00:48.6]} 27. Kb3 {[%clk 0:01:21.5]} 27...
Rh4 {[%clk 0:00:44.2]} 28. Rd1 {[%clk 0:01:10.5]} 28... Ke6 {[%clk 0:00:33.5]}
29. h3 {[%clk 0:01:09]} 29... Re4 {[%clk 0:00:33.1]} 30. Rd3 {[%clk 0:01:08.4]}
30... b5 {[%clk 0:00:28.6]} 31. a3 {[%clk 0:00:56.7]} 31... a5 {[%clk
0:00:28.4]} 32. Kc2 {[%clk 0:00:55]} 32... g5 {[%clk 0:00:27.8]} 33. Kd2 {[%clk
0:00:48]} 33... Ra4 {[%clk 0:00:27.6]} 34. Rd8 {[%clk 0:00:47.2]} 34... Rxa3
{[%clk 0:00:26.4]} 35. Rh8 {[%clk 0:00:44.2]} 35... Ra2+ {[%clk 0:00:25.9]} 36.
Kd3 {[%clk 0:00:43.7]} 36... Rxg2 {[%clk 0:00:26.3]} 37. Rxh6+ {[%clk
0:00:43.8]} 37... Ke5 {[%clk 0:00:26.9]} 38. Rb6 {[%clk 0:00:43]} 38... Rb2
{[%clk 0:00:23.8]} 39. Rg6 {[%clk 0:00:42.4]} 39... a4 {[%clk 0:00:18.8]} 40.
Rxg5 {[%clk 0:00:40.1]} 40... a3 {[%clk 0:00:19]} 41. Rg6 {[%clk 0:00:39.9]}
41... a2 {[%clk 0:00:17.2]} 42. Ra6 {[%clk 0:00:39.4]} 42... Rh2 {[%clk
0:00:16.2]} 43. h4 {[%clk 0:00:37.9]} 43... Kd5 {[%clk 0:00:15.4]} 44. h5 {[%clk
0:00:37]} 44... Kc5 {[%clk 0:00:15.8]} 45. h6 {[%clk 0:00:36.7]} 45... b4 {[%clk
0:00:15.1]} 46. cxb4+ {[%clk 0:00:34.8]} 46... Kb5 {[%clk 0:00:15.4]} 47. Ra8
{[%clk 0:00:29.2]} 47... Kxb4 {[%clk 0:00:15.6]} 48. h7 {[%clk 0:00:29.2]} 48...
Kb3 {[%clk 0:00:14.2]} 49. Kd4 {[%clk 0:00:22.6]} 49... Rxh7 {[%clk 0:00:13]}
50. Rb8+ {[%clk 0:00:18.2]} 50... Kc2 {[%clk 0:00:12.6]} 51. Rc8+ {[%clk
0:00:18]} 51... Kb1 {[%clk 0:00:12.6]} 52. Rb8+ {[%clk 0:00:17.8]} 52... Ka1
{[%clk 0:00:11.7]} 53. Ke5 {[%clk 0:00:17.6]} 53... Re7+ {[%clk 0:00:11.3]} 54.
Kf4 {[%clk 0:00:16.5]} 54... Re4+ {[%clk 0:00:11.8]} 55. Kf3 {[%clk 0:00:16.3]}
55... Rc4 {[%clk 0:00:10.8]} 56. Rb5 {[%clk 0:00:15]} 56... Rc1 {[%clk
0:00:10.2]} 57. Kf4 {[%clk 0:00:11.1]} 57... Rf1+ {[%clk 0:00:08.8]} 58. Ke5
{[%clk 0:00:10.5]} 58... Rf2 {[%clk 0:00:07.7]} 59. e4 {[%clk 0:00:03.3]} 59...
fxe4 {[%clk 0:00:07]} 60. Kxe4 {[%clk 0:00:03.1]} 60... Rb2 {[%clk 0:00:07.5]}
61. Rh5 {[%clk 0:00:02.7]} 61... Rb4+ {[%clk 0:00:06.7]} 62. Kd3 {[%clk
0:00:01.8]} 62... Kb2 {[%clk 0:00:07.1]} 0-1